Workbook

Sheet COCO
P11: Le projet COCO (Confort Optimisé pour réduire la Climatisation en Outre-mer) est un projet qui a permis d’évaluer le confort thermique des bâtiments à La Martinique et à Mayotte dans l’objectif de réduire la consommation énergétique liée à la climatisation dans les bâtiments tertiaires et les logements. Sur la base de l’ensemble des données récoltées et traitées sur les territoires de La Martinique et de Mayotte, nous proposons une évolution du diagramme de confort de Givoni adapté au climat tropical, applicable à La Martinique, à Mayotte et en Guadeloupe. Pour étudier le confort thermique selon le diagramme COCO, et le comparer au diagramme de Givoni, cliquez ici !

Sheet Diagrammes
A1: Date / Heure (facultatif) | B1: Température opérative [°C] | C1: Humidité relative (HR) [%] | E1: Etape 1 : Entrer/Coller les données mesurées de température opérative et d'humidité dans les cases vertes ci-contre à gauche Attention : Ne pas laisser de cellules vides entre les données Etape 2 : Cliquer sur analyse statistique
I2: Analyse statistique effectuée, résultats ci-dessous
AI21: zone de confort à 0 m/s
AI22: zone de confort à 0,5 m/s
AI23: zone de confort à 1 m/s
AI24: zone de confort à 1,5 m/s
AI26: Zone COCO à 0 m/s
AI27: Zone COCO à 1 m/s
J30: Nombre d'heures totales : | K30: =COUNT($B:$B) -> 0
G32: à 0 m/s | H32: à 1 m/s | M32: à 0 m/s | N32: à 1 m/s
F33: Nombre d'heures dans la zone de confort de Givoni | G33: 0 | H33: 0 | L33: Nombre d'heures dans la zone de confort COCO | M33: 0 | N33: 0
F34: Pourcentage des heures confortables selon Givoni | G34: =IFERROR(G33/K30,0) -> 0 | H34: =IFERROR(H33/K30,0) -> 0 | L34: Pourcentage des heures confortables avec COCO | M34: =IFERROR(M33/K30,0) -> 0 | N34: =IFERROR(N33/K30,0) -> 0

Sheet Courbes Givoni (hidden)
A1: Aide au tracé du degré hygrométrique | P1: Zones de confort GIVONI | X1: Zones de confort COCO
E2: r (hum abs) pour φ (humidité relative) donnée
B3: Pa | C3: Pa | D3: °C | E3: geau/kgas | F3: geau/kgas | G3: geau/kgas | H3: geau/kgas | I3: geau/kgas | J3: geau/kgas | K3: geau/kgas | L3: geau/kgas | M3: geau/kgas | N3: geau/kgas | P3: v = 0 m/s | X3: v = 0 m/s
E4: 0.1 | F4: =E4+0.1 -> 0.2 | G4: =F4+0.1 -> 0.3 | H4: 0.4 | I4: 0.5 | J4: 0.6 | K4: 0.7 | L4: 0.8 | M4: 0.9 | N4: 1 | P4: T | Q4: φ | R4: p_vs = f(T) | S4: p_atm | T4: r | X4: T | Y4: φ | Z4: p_vs = f(T) | AA4: p_atm | AB4: r
B5: p_atm | C5: p_vs = f(T) | D5: T | E5: HR = 10% | F5: HR = 20% | G5: HR = 30% | H5: HR = 40% | I5: HR = 50% | J5: HR = 60% | K5: HR = 70% | L5: HR = 80% | M5: HR = 90% | N5: HR = 100% | P5: °C | Q5: % | R5: Pa | S5: Pa | X5: °C | Y5: % | Z5: Pa | AA5: Pa
B6: 101325 | C6: =10^((7.5*D6/(237.3+D6))+2.7858) -> 610.6607405 | D6: 0 | E6: =0.622*E$4*$C6/($B6-$C6*E$4)*1000 -> 0.3750900897 | F6: =0.622*F$4*$C6/($B6-$C6*F$4)*1000 -> 0.75063284 | G6: 1.126629071 | H6: 1.503079604 | I6: 1.879985264 | J6: 2.257346876 | K6: 2.635165268 | L6: 3.01344127 | M6: 3.392175714 | N6: 3.771369433 | P6: 20 | Q6: 0.2 | R6: =10^((7.5*P6/(237.3+P6))+2.7858) -> 2337.636983 | S6: 101325 | T6: =0.622*(($Q6*$R6)/($S6-$Q6*$R6))*1000 -> 2.883296926 | X6: 20 | Y6: 0.2 | Z6: =10^((7.5*X6/(237.3+X6))+2.7858) -> 2337.636983 | AA6: 101325 | AB6: =0.622*(($Y6*$Z6)/($AA6-$Y6*$Z6))*1000 -> 2.883296926 | AC6: a | AD6: b
B7: 101325 | C7: 656.5577518 | D7: =D6+1 -> 1 | E7: =0.622*E$4*$C7/($B7-$C7*E$4)*1000 -> 0.4032999865 | F7: 0.8071233055 | G7: 1.211470976 | H7: 1.616344021 | I7: 2.021743464 | J7: 2.427670332 | K7: 2.834125656 | L7: 3.241110469 | M7: 3.648625805 | N7: 4.056672702 | P7: 20 | Q7: 0.8 | R7: 2337.636983 | S7: 101325 | T7: =0.622*(($Q7*$R7)/($S7-$Q7*$R7))*1000 -> 11.69583676 | U7: =(T8-T7)/(P8-P7) -> 0.8510562229 | V7: =-(U7*P7)+T7 -> -5.3252877 | X7: 20 | Y7: 0.8 | Z7: 2337.636983 | AA7: 101325 | AB7: 11.69583676 | AC7: =(AB8-AB7)/(X8-X7) -> 0.9021526934 | AD7: =-(AC7*X7)+AB7 -> -6.347217111
B8: 101325 | C8: 705.4769439 | D8: =D7+1 -> 2 | E8: 0.4333702362 | F8: 0.8673447834 | G8: 1.301924906 | H8: 1.737111874 | I8: 2.172906957 | J8: 2.609311433 | K8: 3.046326579 | L8: 3.483953679 | M8: 3.922194018 | N8: 4.361048888 | P8: 25 | Q8: 0.8 | R8: 3166.870809 | S8: 101325 | T8: =0.622*(($Q8*$R8)/($S8-$Q8*$R8))*1000 -> 15.95111787 | U8: =(T9-T8)/(P9-P8) -> -2.375558936 | V8: =-(U8*P8)+T8 -> 75.34009127 | X8: 27 | Y8: 0.8 | Z8: 3564.30452 | AA8: 101325 | AB8: 18.01090561 | AC8: =(AB9-AB8)/(X9-X8) -> -1.337788835 | AD8: =-(AC8*X8)+AB8 -> 54.13120416
B9: 101325 | C9: 757.5877765 | D9: 3 | E9: 0.4654055589 | F9: 0.9315081098 | G9: 1.39830922 | H9: 1.86581046 | I9: 2.334013407 | J9: 2.802919643 | K9: 3.272530751 | L9: 3.742848325 | M9: 4.213873957 | N9: 4.68560925 | P9: 27 | R9: 3564.30452 | S9: 101325 | T9: =0.0112*1000 -> 11.2 | X9: 28 | Y9: 0.7 | Z9: 3778.82455 | AA9: 101325 | AB9: 16.67311678
B10: 101325 | C10: 813.0674301 | D10: 4 | E10: 0.4995155009 | F10: 0.9998339481 | G10: 1.500957279 | H10: 2.002887438 | I10: 2.505626374 | J10: 3.009176045 | K10: 3.513538412 | L10: 4.018715446 | M10: 4.524709121 | N10: 5.031521419 | P10: 27 | Q10: 0.2 | R10: 3564.30452 | S10: 101325 | T10: =0.622*(($Q10*$R10)/($S10-$Q10*$R10))*1000 -> 4.407017744 | X10: 28 | Y10: 0.2 | Z10: 3778.82455 | AA10: 101325 | AB10: 4.674250268
B11: 101325 | C11: 872.1010673 | D11: 5 | E11: 0.5358146048 | F11: 1.072553148 | G11: 1.610218021 | H11: 2.148811625 | I11: 2.688336368 | J11: 3.228794666 | K11: 3.770188944 | L11: 4.312521637 | M11: 4.855795186 | N11: 5.400012042 | P11: 20 | Q11: 0.2 | R11: 2337.636983 | S11: 101325 | T11: =0.622*(($Q11*$R11)/($S11-$Q11*$R11))*1000 -> 2.883296926 | X11: 20 | Y11: 0.2 | Z11: 2337.636983 | AA11: 101325 | AB11: 2.883296926
B12: 101325 | C12: 934.8820976 | D12: 6 | E12: 0.5744225829 | F12: 1.149907115 | G12: 1.726456545 | H12: 2.30407383 | I12: 2.882761941 | J12: 3.462523857 | K12: 4.04336257 | L12: 4.625281083 | M12: 5.20828241 | N12: 5.792369576
B13: 101325 | C13: 1001.612448 | D13: 7 | E13: 0.6154644952 | F13: 1.232148192 | G13: 1.850054717 | H13: 2.469187711 | I13: 3.089550829 | J13: 3.711147741 | K13: 4.33398213 | L13: 4.958057697 | M13: 5.583378155 | N13: 6.209947233
B14: 101325 | C14: 1072.50284 | D14: 8 | E14: 0.6590709321 | F14: 1.319540048 | G14: 1.981411802 | H14: 2.644690668 | I14: 3.309381136 | J14: 3.975487718 | K14: 4.643014944 | L14: 5.311967365 | M14: 5.982349549 | N14: 6.654166084 | P14: v = 0,5 m/s
B15: 101325 | C15: 1147.773066 | D15: 9 | E15: 0.7053782 | F15: 1.412358083 | G15: 2.120945109 | H15: 2.831144767 | I15: 3.542962566 | J15: 4.256404044 | K15: 4.971474762 | L15: 5.688180308 | M15: 6.406526295 | N15: 7.12651836 | P15: T | Q15: φ | R15: p_vs = f(T) | S15: p_atm | T15: r
B16: 101325 | C16: 1227.652278 | D16: 10 | E16: 0.7545285128 | F16: 1.510889838 | G16: 2.269090662 | H16: 3.029137704 | I16: 3.791037715 | J16: 4.55479748 | K16: 5.320423816 | L16: 6.087923574 | M16: 6.857303639 | N16: 7.628570929 | P16: °C | Q16: % | R16: Pa | S16: Pa
B17: 101325 | C17: 1312.379276 | D17: 11 | E17: 0.8066701868 | F17: 1.615435428 | G17: 2.426303895 | H17: 3.239283803 | I17: 4.054383411 | J17: 4.871611019 | K17: 5.690974972 | L17: 6.512483656 | M17: 7.336145506 | N17: 8.161968996 | P17: 20 | Q17: 0.2 | R17: =10^((7.5*P17/(237.3+P17))+2.7858) -> 2337.636983 | S17: 101325 | T17: =0.622*(($Q17*$R17)/($S17-$Q17*$R17))*1000 -> 2.883296926
B18: 101325 | C18: 1402.202801 | D18: 12 | E18: 0.8619578406 | F18: 1.726307972 | G18: 2.593060366 | H18: 3.462225054 | I18: 4.333812118 | J18: 5.207831701 | K18: 6.084293999 | L18: 6.963209268 | M18: 7.844587819 | N18: 8.728440023 | P18: 20 | R18: 2337.636983 | S18: 101325 | T18: =0.01242*1000 -> 12.42 | U18: =(T19-T18)/(P19-P18) -> 1.035 | V18: =-(U18*P18)+T18 -> -8.28
B19: 101325 | C19: 1497.381837 | D19: 13 | E19: 0.9205525995 | F19: 1.843834051 | G19: 2.769856508 | H19: 3.698632193 | I19: 4.630173404 | J19: 5.56449251 | K19: 6.501601958 | L19: 7.441514264 | M19: 8.384242023 | N19: 9.329797904 | P19: 26 | R19: 3360.470412 | S19: 101325 | T19: =0.01863*1000 -> 18.63 | U19: =(T20-T19)/(P20-P19) -> -1.325 | V19: =-(U19*P19)+T19 -> 53.08
B20: 101325 | C20: 1598.185912 | D20: 14 | E20: 0.9826223049 | F20: 1.968354174 | G20: 2.95721039 | H20: 3.949205832 | I20: 4.944355473 | J20: 5.942674379 | K20: 6.944177715 | L20: 7.948880742 | M20: 8.956798818 | N20: 9.967947401 | P20: 30 | R20: 4241.806388 | S20: 101325 | T20: =0.01333*1000 -> 13.33
B21: 101325 | C21: 1704.895407 | D21: 15 | E21: 1.048341728 | F21: 2.10022325 | G21: 3.155662525 | H21: 4.214677632 | I21: 5.277286776 | J21: 6.343508283 | K21: 7.413360605 | L21: 8.48686232 | M21: 9.564032133 | N21: 10.64488888 | P21: 30 | Q21: 0.2 | R21: 4241.806388 | S21: 101325 | T21: =0.622*(($Q21*$R21)/($S21-$Q21*$R21))*1000 -> 5.251775152
B22: 101325 | C22: 1817.801869 | D22: 16 | E22: 1.117892791 | F22: 2.239811094 | G22: 3.365776692 | H22: 4.495811526 | I22: 5.629937694 | J22: 6.768177457 | K22: 7.910553236 | L22: 9.057087615 | M22: 10.20780334 | N22: 11.36272334 | P22: 20 | Q22: 0.2 | R22: 2337.636983 | S22: 101325 | T22: =0.622*(($Q22*$R22)/($S22-$Q22*$R22))*1000 -> 2.883296926
B23: 101325 | C23: 1937.208327 | D23: 17 | E23: 1.191464786 | F23: 2.387502926 | G23: 3.588140801 | H23: 4.793404998 | I23: 6.003322306 | J23: 7.217919725 | K23: 8.437224462 | L23: 9.661263936 | M23: 10.89006578 | N23: 12.12365784
B24: 101325 | C24: 2063.429614 | D24: 18 | E24: 1.269254614 | F24: 2.543699908 | G24: 3.823367788 | H24: 5.108290423 | I24: 6.398500247 | J24: 7.694029959 | K24: 8.994912532 | L24: 10.30118121 | M24: 11.61286951 | N24: 12.93001123 | P24: v = 1,0 m/s | X24: v = 1,0 m/s
B25: 101325 | C25: 2196.792693 | D25: 19 | E25: 1.35146701 | F25: 2.70881968 | G25: 4.072096541 | H25: 5.441336464 | I25: 6.816578658 | J25: 8.197862678 | K25: 9.585228426 | L25: 10.97871616 | M25: 12.37836648 | N25: 13.78422038 | P25: T | Q25: φ | R25: p_vs = f(T) | S25: p_atm | T25: r | X25: T | Y25: φ | Z25: p_vs = f(T) | AA25: p_atm | AB25: r
B26: 101325 | C26: 2337.636983 | D26: 20 | E26: 1.438314791 | F26: 2.883296926 | G26: 4.334992875 | H26: 5.793449536 | I26: 7.258714249 | J26: 8.730834795 | K26: 10.2098594 | L26: 11.69583676 | M26: 13.188816 | N26: 14.68884673 | P26: °C | Q26: % | R26: Pa | S26: Pa | X26: °C | Y26: % | Z26: Pa | AA26: Pa
B27: 101325 | C27: 2486.314699 | D27: 21 | E27: 1.530019099 | F27: 3.067583957 | G27: 4.612750533 | H27: 6.165575341 | I27: 7.726115457 | J27: 9.294428525 | K27: 10.87057277 | L27: 12.45460698 | M27: 14.04659056 | N27: 15.6465835 | P27: 20 | Q27: 0.2 | R27: =10^((7.5*P27/(237.3+P27))+2.7858) -> 2337.636983 | S27: 101325 | T27: =0.622*(($Q27*$R27)/($S27-$Q27*$R27))*1000 -> 2.883296926 | X27: 20 | Y27: 0.2 | Z27: =10^((7.5*X27/(237.3+X27))+2.7858) -> 2337.636983 | AA27: 101325 | AB27: =0.622*(($Y27*$Z27)/($AA27-$Y27*$Z27))*1000 -> 2.883296926 | AC27: a | AD27: b
B28: 101325 | C28: 2643.191183 | D28: 22 | E28: 1.626809657 | F28: 3.262151306 | G28: 4.906092244 | H28: 6.558700479 | I28: 8.220044735 | J28: 9.890194467 | K28: 11.56921987 | L28: 13.25719188 | M28: 14.95418219 | N28: 16.66026328 | P28: 20 | R28: 2337.636983 | S28: 101325 | T28: =0.013175*1000 -> 13.175 | U28: =(T29-T28)/(P29-P28) -> 1.169285714 | V28: =-(U28*P28)+T28 -> -10.21071429 | X28: 20 | Z28: 2337.636983 | AA28: 101325 | AB28: =0.013175*1000 -> 13.175 | AC28: =(AB29-AB28)/(X29-X28) -> 1.169285714 | AD28: =-(AC28*X28)+AB28 -> -10.21071429
B29: 101325 | C29: 2808.645248 | D29: 23 | E29: 1.728925025 | F29: 3.467488358 | G29: 5.21577082 | H29: 6.97385414 | I29: 8.741820964 | J29: 10.51975487 | K29: 12.30774039 | L29: 14.10586299 | M29: 15.91420914 | N29: 17.73286627 | P29: 27 | R29: 3564.30452 | S29: 101325 | T29: =0.02136*1000 -> 21.36 | U29: =(T30-T29)/(P30-P29) -> -1.272 | V29: =-(U29*P29)+T29 -> 55.704 | X29: 27 | Z29: 3564.30452 | AA29: 101325 | AB29: =0.02136*1000 -> 21.36 | AC29: =(AB30-AB29)/(X30-X29) -> 0 | AD29: =-(AC29*X29)+AB29 -> 21.36
B30: 101325 | C30: 2983.069525 | D30: 24 | E30: 1.836612868 | F30: 3.684103988 | G30: 5.542570296 | H30: 7.41210988 | I30: 9.292822003 | J30: 11.18480712 | K30: 13.08816688 | L30: 15.00300419 | M30: 16.92942316 | N30: 18.8675292 | P30: 32 | R30: 4753.345757 | S30: 101325 | T30: =0.015*1000 -> 15 | X30: 31 | Z30: 4491.250468 | AA30: 101326 | AB30: =0.02136*1000 -> 21.36 | AC30: =(AB31-AB30)/(X31-X30) -> -6.36 | AD30: =-(AC30*X30)+AB30 -> 218.52
B31: 101325 | C31: 3166.870809 | D31: 25 | E31: 1.950130228 | F31: 3.912527237 | G31: 5.887307134 | H31: 7.874587494 | I31: 9.874487388 | J31: 11.8871274 | K31: 13.91262967 | L31: 15.95111787 | M31: 18.00271731 | N31: 20.06755487 | P31: 32 | Q31: 0.2 | R31: 4753.345757 | S31: 101325 | T31: =0.622*(($Q31*$R31)/($S31-$Q31*$R31))*1000 -> 5.89110988 | X31: 32 | Z31: 4753.345757 | AA31: 101325 | AB31: =0.015*1000 -> 15
B32: 101325 | C32: 3360.470412 | D32: 26 | E32: 2.069743804 | F32: 4.153307999 | G32: 6.250831475 | H32: 8.362454988 | I32: 10.48832119 | J32: =0.622*J$4*$C32/($B32-$C32*J$4)*1000 -> 12.62857467 | K32: 14.78336198 | L32: 16.95283167 | M32: 19.1371343 | N32: 21.33642253 | P32: 20 | Q32: 0.2 | R32: 2337.636983 | S32: 101325 | T32: =0.622*(($Q32*$R32)/($S32-$Q32*$R32))*1000 -> 2.883296926 | X32: 32 | Y32: 0.2 | Z32: 4753.345757 | AA32: 101325 | AB32: =0.622*(($Y32*$Z32)/($AA32-$Y32*$Z32))*1000 -> 5.89110988
B33: 101325 | C33: 3564.30452 | D33: 27 | E33: =0.622*E$4*$C33/($B33-$C33*E$4)*1000 -> 2.195730237 | F33: 4.407017744 | G33: 6.63402845 | H33: 8.876930651 | I33: 11.13589505 | J33: 13.41109482 | K33: 15.7027056 | L33: 18.01090561 | M33: 20.33587563 | N33: 22.6777991 | X33: 20 | Y33: 0.2 | Z33: 2337.636983 | AA33: 101325 | AB33: =0.622*(($Y33*$Z33)/($AA33-$Y33*$Z33))*1000 -> 2.883296926
B34: 101325 | C34: 3778.82455 | D34: 28 | E34: 2.328376409 | F34: 4.674250268 | G34: 7.037819558 | H34: 9.419285257 | I34: 11.8188514 | J34: 14.23672513 | K34: 16.67311678 | L34: 19.12823988 | M34: 21.60231131 | N34: 24.09555126 | P34: v = 1,5 m/s
B35: 101325 | C35: 4004.497515 | D35: 29 | E35: 2.467979742 | F35: 4.955622467 | G35: 7.463164106 | H35: 9.990844376 | I35: 12.53890686 | J35: 15.1075991 | K35: 17.69717263 | L35: 20.30788313 | M35: 22.93999043 | N35: 25.59375867 | P35: T | Q35: φ | R35: p_vs = f(T) | S35: p_atm | T35: r
B36: 101325 | C36: 4241.806388 | D36: 30 | E36: 2.614848511 | F36: 5.251775152 | G36: 7.911060728 | H36: 10.59299083 | I36: 13.29785593 | J36: 16.02595148 | K36: 18.77757806 | L36: 21.55304142 | M36: 24.35265265 | N36: 27.17672828 | P36: °C | Q36: % | R36: Pa | S36: Pa
B37: 101325 | C37: 4491.250468 | D37: 31 | E37: 2.769302167 | F37: 5.563373889 | G37: 8.38254898 | H37: 11.22716728 | I37: 14.09757479 | J37: 16.9941238 | K37: 19.91717308 | L37: 22.86708797 | M37: 25.84424055 | N37: 28.84900982 | P37: 20 | Q37: 0.2 | R37: =10^((7.5*P37/(237.3+P37))+2.7858) -> 2337.636983 | S37: 101325 | T37: =0.622*(($Q37*$R37)/($S37-$Q37*$R37))*1000 -> 2.883296926
B38: 101325 | C38: 4753.345757 | D38: 32 | E38: 2.93167166 | F38: 5.89110988 | G38: 8.878711011 | H38: 11.89487899 | I38: 14.9400255 | J38: 18.01457019 | K38: 21.11894085 | L38: 24.2535736 | M38: 27.41891312 | N38: 30.61541281 | P38: 20 | R38: 2337.636983 | S38: 101325 | T38: =0.01393*1000 -> 13.93
B39: 101325 | C39: 5028.625329 | D39: 33 | E39: 3.102299786 | F39: 6.23570088 | G39: 9.400673335 | H39: 12.59769672 | I39: 15.82726039 | J39: 19.08986367 | K39: 22.38601618 | L39: 25.71623809 | M39: 29.08106035 | N39: 32.48102502 | P39: 27.6 | R39: 3691.704692 | S39: 101325 | T39: =0.0229*1000 -> 22.9 | U39: =(T39-T38)/(P39-P38) -> 1.180263158 | V39: =-(U39*P38)+T38 -> -9.675263158
B40: 101325 | C40: 5317.639711 | D40: 34 | E40: 3.28154153 | F40: 6.597892155 | G40: 9.949608687 | H40: 13.33725988 | I40: 16.76142674 | J40: 20.22270287 | K40: 23.72169483 | L40: 27.25902243 | M40: 30.83531918 | N40: 34.45123259 | P40: 33.2 | R40: 5085.311492 | S40: 101325 | T40: =0.016*1000 -> 16 | U40: =(T40-T39)/(P40-P39) -> -1.232142857 | V40: =-(U40*P39)+T39 -> 56.90714286
B41: 101325 | C41: 5620.957256 | D41: 35 | E41: 3.469764432 | F41: 6.978457488 | G41: 10.52673799 | H41: 14.11527973 | I41: 17.74477186 | J41: 21.41591935 | K41: 25.12944346 | L41: 28.88608218 | M41: 32.68659076 | N41: 36.53174216 | P41: 33.2 | Q41: 0.2 | R41: 5085.311492 | S41: 101325 | T41: =0.622*(($Q41*$R41)/($S41-$Q41*$R41))*1000 -> 6.306706769
B42: 101325 | C42: 5939.164533 | D42: 36 | E42: 3.667348955 | F42: 7.378200217 | G42: 11.13333244 | H42: 14.93354299 | I42: 18.77964847 | J42: 22.67248533 | K42: 26.61291049 | L42: 30.60180194 | M42: 34.64005938 | N42: 38.72860495 | P42: 20 | Q42: 0.2 | R42: 2337.636983 | S42: 101325 | T42: =0.622*(($Q42*$R42)/($S42-$Q42*$R42))*1000 -> 2.883296926
B43: 101325 | C43: 6272.866704 | D43: 37 | E43: 3.874688869 | F43: 7.797954341 | G43: 11.77071568 | H43: 15.79391549 | I43: 19.86852046 | J43: 23.99552214 | K43: 28.17593777 | L43: 32.41081105 | M43: 36.7012131 | N43: 41.04824326
B44: 101325 | C44: 6622.687913 | D44: 38 | E44: 4.092191651 | F44: 8.238585667 | G44: 12.44026612 | H44: 16.69834618 | I44: 21.01396911 | J44: 25.38830929 | K44: 29.82257324 | L44: 34.31800082 | M44: 38.87586628 | N44: 43.49747953
B45: 101325 | C45: 6989.271673 | D45: 39 | E45: 4.320278888 | F45: 8.700993012 | G45: 13.14341942 | H45: 17.6488714 | I45: 22.21869978 | J45: 26.85429423 | K45: 31.55708476 | L45: 36.32854311 | M45: 41.17018431 | N45: 46.08356831
B46: 101325 | C46: 7373.281257 | D46: 40 | E46: 4.559386709 | F46: 9.186109471 | G46: 13.88167108 | H46: 18.64761938 | I46: 23.48554898 | J46: 28.397103 | K46: 33.38397498 | L46: 38.4479108 | M46: 43.59071069 | N46: 48.81423143
B47: 101326 | C47: 7775.400089 | D47: 41 | E47: 4.809918378 | F47: 9.694806576 | G47: 14.65643114 | H47: 19.69661455 | I47: 24.81723746 | J47: 30.02024105 | K47: 35.30762944 | L47: 40.68147231 | M47: 46.14390757 | N47: 51.69714422
B48: 101327 | C48: 8196.332138 | D48: 42 | E48: 5.072383003 | F48: =0.622*F$4*$C48/($B48-$C48*F$4)*1000 -> 10.22817634 | G48: 15.46945447 | H48: 20.79836121 | I48: 26.21711268 | J48: 31.72800035 | K48: 37.33339428 | L48: 43.03574654 | M48: 48.83759475 | N48: 54.74156587
B49: 101328 | C49: 8636.802308 | D49: 43 | E49: 5.347262638 | F49: 10.78726213 | G49: 16.32243207 | H49: 21.95529193 | I49: 27.68845094 | J49: 33.52461205 | K49: 39.46657624 | L49: 45.51724696 | M49: 51.67963488 | N49: 57.95686289
B50: 101329 | C50: 9097.556843 | D50: 44 | E50: 5.635055706 | F50: 11.37314729 | G50: 17.21712682 | H50: 23.1699526 | I50: 29.23469416 | J50: 35.41453755 | K50: 41.71279091 | L50: 48.13289039 | M50: 54.67840638 | N50: 61.35305014
B51: 101330 | C51: 9579.363715 | D51: 45 | E51: 5.936277501 | F51: 11.98695677 | G51: 18.15537706 | H51: 24.44500883 | I51: 30.8594603 | J51: 37.40248435 | K51: 44.07798581 | L51: 50.89002925 | M51: 57.84284726 | N51: 64.94084915
B52: 101331 | C52: 10083.01303 | D52: 46 | E52: 6.25146072 | F52: 12.62985885 | G52: 19.13910028 | H52: 25.78325281 | I52: 32.56655464 | J52: 39.49342336 | K52: 46.56846556 | L52: 53.79648701 | M52: 61.18250363 | N52: 68.731753
B53: 101332 | C53: 10609.31741 | D53: 47 | E53: 6.581156004 | F53: 13.30306693 | G53: 20.17029718 | H53: 27.18761071 | I53: 34.35998196 | J53: 41.69260769 | K53: 49.19091951 | L53: 56.86059727 | M53: 64.70758348 | N53: 72.73809857
B54: 101333 | C54: 11159.11242 | D54: =D53+1 -> 48 | E54: 6.925932507 | F54: 14.00784149 | G54: 21.25105598 | H54: 28.66115058 | I54: 36.24395977 | J54: 44.00559318 | K54: 51.95245209 | L54: 60.09124695 | M54: 68.42901635 | N54: 76.97314727
B55: 101334 | C55: 11733.25696 | D55: 49 | E55: 7.286378492 | F55: 14.74549209 | G55: 22.38355691 | H55: 30.20709097 | I55: 38.22293268 | J55: 46.43826086 | K55: 54.86061613 | L55: 63.497924 | M55: 72.35851976 | N55: 81.45117531
B56: 101335 | C56: 12332.63364 | D56: 50 | E56: 7.663101939 | F56: 15.51737954 | G56: 23.57007721 | H56: 31.82881009 | I56: 40.30158801 | J56: 48.99684146 | K56: 57.92344957 | L56: 67.09077031 | M56: 76.50867324 | N56: 86.18757494
